fUSD/lending_fUSD_20250911
["ID","MTS","AMOUNT","RATE_DAILY","PERIOD"]
[384929066,1757627532804,-400.0,0.00029315,7]
[384929067,1757627532814,-595.56,0.00029315,7]
[384929068,1757627532823,-541.07,0.00029315,7]
[384929069,1757627532833,-439.31,0.00029315,7]
[384929070,1757627532842,-400.0,0.00029315,7]
[384929071,1757627532851,-995.46,0.00029315,7]
[384929072,1757627532861,-400.0,0.00029315,7]
[384929073,1757627532870,-1889.23,0.00029315,7]
[384929074,1757627532880,-400.0,0.00029315,7]
[384929075,1757627532889,-1159.7,0.00029315,7]
[384929076,1757627532899,-404.78,0.00029315,7]
[384929077,1757627532908,-423.81249981,0.00029315,7]
[384929078,1757627532918,-400.0,0.00029315,7]
[384929079,1757627532927,-892.23,0.00029315,7]
[384929080,1757627532937,-400.0,0.00029315,7]
[384929081,1757627532946,-568.18,0.00029315,7]
[384929082,1757627532955,-403.03,0.00029315,7]
[384929083,1757627532965,-1401.18,0.00029315,7]
[384929084,1757627532974,-458.22,0.00029315,7]
[384929085,1757627532984,-400.0,0.00029315,7]
[384929086,1757627532993,-1506.44,0.00029315,7]
[384929087,1757627533002,-400.0,0.00029315,7]
[384929088,1757627533012,-653.84,0.00029315,7]
[384929089,1757627533021,-1579.45,0.00029315,7]
[384929090,1757627533031,-400.0,0.00029315,7]
[384929091,1757627533040,-596.11,0.00029315,7]
[384929092,1757627533050,-614.15,0.00029315,7]
[384929093,1757627533060,-314.2407928,0.00029315,7]
[384929094,1757627533069,-400.0,0.00029315,7]
[384929095,1757627533078,-400.0,0.00029315,7]
[384929096,1757627533088,-1013.76,0.00029315,7]
[384929097,1757627533098,-400.0,0.00029315,7]
[384929098,1757627533107,-400.0,0.00029315,7]
[384929099,1757627533117,-1714.22,0.00029315,7]
[384929100,1757627533126,-517.47,0.00029315,7]
[384929101,1757627533136,-1096.07,0.00029315,7]
[384929102,1757627533146,-400.0,0.00029315,7]
[384929103,1757627533157,-1253.03,0.00029315,7]
[384929104,1757627533167,-1145.97,0.00029315,7]
[384929105,1757627533178,-1745.67,0.00029315,7]
[384929106,1757627533188,-400.0,0.00029315,7]
[384929107,1757627533198,-727.42,0.00029315,7]
[384929108,1757627533207,-451.12,0.00029315,7]
[384929109,1757627533217,-400.0,0.00029315,7]
[384929110,1757627533227,-583.39,0.00029315,7]
[384929111,1757627533236,-400.0,0.00029315,7]
[384929112,1757627533246,-400.0,0.00029315,7]
[384929113,1757627533255,-576.54,0.00029315,7]
[384929114,1757627533264,-400.0,0.00029315,7]
[384929115,1757627533273,-1541.62,0.00029315,7]
[384929116,1757627533283,-921.85,0.00029315,7]
[384929117,1757627533292,-426.23,0.00029315,7]
[384929118,1757627533302,-1433.65,0.00029315,7]
[384929119,1757627533311,-255.34698272,0.00029315,7]
[384929120,1757627533320,-2304.65,0.00029315,7]
[384929121,1757627533330,-1278.47,0.00029315,7]
[384929122,1757627533343,-451.27655793,0.00029315,7]
[384929123,1757627533353,-400.0,0.00029315,7]
[384929124,1757627533363,-506.5,0.00029315,7]
[384929125,1757627533372,-400.0,0.00029315,7]
[384929126,1757627533381,-1307.66,0.00029315,7]
[384929127,1757627533390,-400.0,0.00029315,7]
[384929128,1757627533400,-1245.35,0.00029315,7]
[384929129,1757627533409,-1371.0,0.00029315,7]
[384929130,1757627533420,-400.0,0.00029315,7]
[384929131,1757627533430,-400.0,0.00029315,7]
[384929132,1757627533439,-400.0,0.00029315,7]
[384929133,1757627533448,-506.24,0.00029315,7]
[384929134,1757627533457,-400.0,0.00029315,7]
[384929135,1757627533467,-1050.18,0.00029315,7]
[384929136,1757627533476,-400.0,0.00029315,7]
[384929137,1757627533485,-1616.64,0.00029315,7]
[384929138,1757627533495,-1120.7,0.00029315,7]
[384929139,1757627533504,-1151.78,0.00029315,7]
[384929140,1757627533512,-521.28,0.00029315,7]
[384929141,1757627533522,-1013.69,0.00029315,7]
[384929142,1757627533531,-400.0,0.00029315,7]
[384929143,1757627533540,-634.88,0.00029315,7]
[384929144,1757627533549,-400.0,0.00029315,7]
[384929145,1757627533559,-2767.55,0.00029315,7]
[384929146,1757627533568,-1117.29,0.00029315,7]
[384929147,1757627533577,-422.28,0.00029315,7]
[384929148,1757627533589,-428.8,0.00029315,7]
[384929149,1757627533598,-1735.26,0.00029315,7]
[384929150,1757627533607,-1678.88,0.00029315,7]
[384929151,1757627533616,-400.0,0.00029315,7]
[384929152,1757627533626,-400.0,0.00029315,7]
[384929153,1757627533635,-522.94,0.00029315,7]
[384929154,1757627533644,-752.82,0.00029315,7]
[384929155,1757627533654,-412.38,0.00029315,7]
[384929156,1757627533663,-400.0,0.00029315,7]
[384929157,1757627533672,-2172.72,0.00029315,7]
[384929158,1757627533682,-479.83,0.00029315,7]
[384929159,1757627533691,-400.0,0.00029315,7]
[384929160,1757627533700,-1991.58,0.00029315,7]
[384929161,1757627533709,-645.68,0.00029315,7]
[384929162,1757627533718,-684.67,0.00029315,7]
[384929163,1757627533727,-400.0,0.00029315,7]
[384929164,1757627533736,-1865.74,0.00029315,7]
[384929165,1757627533745,-1236.15,0.00029315,7]
[384929166,1757627533755,-703.53,0.00029315,7]
[384929167,1757627533765,-2285.17,0.00029315,7]
[384929168,1757627533774,-400.0,0.00029315,7]
[384929169,1757627533783,-1603.43,0.00029315,7]
[384929170,1757627533794,-620.1,0.00029315,7]
[384929171,1757627533803,-1983.9,0.00029315,7]
[384929172,1757627533812,-2163.46,0.00029315,7]
[384929173,1757627533821,-941.57,0.00029315,7]
[384929174,1757627533830,-400.0,0.00029315,7]
[384929175,1757627533839,-434.84,0.00029315,7]
[384929176,1757627533848,-1569.39,0.00029315,7]
[384929177,1757627533858,-931.18,0.00029315,7]
[384929178,1757627533867,-400.0,0.00029315,7]
[384929179,1757627533876,-1230.65,0.00029315,7]
[384929180,1757627533886,-2317.42,0.00029315,7]
[384929181,1757627533896,-535.67,0.00029315,7]
[384929182,1757627533906,-644.68,0.00029315,7]
[384929183,1757627533917,-1234.23,0.00029315,7]
[384929184,1757627534020,-919.77,0.00029315,7]
[384929185,1757627534030,-1771.81,0.00029315,7]
[384929186,1757627534039,-400.0,0.00029315,7]
[384929187,1757627534048,-400.0,0.00029315,7]
[384929188,1757627534057,-400.0,0.00029315,7]
[384929189,1757627534068,-508.25,0.00029315,7]
[384929190,1757627534077,-2325.79,0.00029315,7]
[384929191,1757627534087,-1609.41,0.00029315,7]
[384929192,1757627534099,-568.33,0.00029315,7]
[384929193,1757627534108,-816.93,0.00029315,7]
[384929194,1757627534118,-1798.92,0.00029315,7]
[384929195,1757627534128,-1386.18,0.00029315,7]
[384929196,1757627534138,-1213.37,0.00029315,7]
[384929197,1757627534148,-400.0,0.00029315,7]
[384929198,1757627534158,-400.0,0.00029315,7]
[384929199,1757627534167,-400.0,0.00029315,7]
[384929200,1757627534176,-1999.59,0.00029315,7]
[384929201,1757627534186,-1552.95,0.00029315,7]
[384929202,1757627534196,-400.0,0.00029315,7]
[384929203,1757627534205,-403.06,0.00029315,7]
[384929204,1757627534214,-1732.83,0.00029315,7]
[384929205,1757627534223,-400.0,0.00029315,7]
[384929206,1757627534232,-465.53,0.00029315,7]
[384929207,1757627534241,-400.0,0.00029315,7]
[384929208,1757627534250,-709.04,0.00029315,7]
[384929209,1757627534260,-955.01,0.00029315,7]
[384929210,1757627534269,-400.0,0.00029315,7]
[384929211,1757627534279,-2037.8,0.00029315,7]
[384929212,1757627534288,-400.0,0.00029315,7]
[384929213,1757627534297,-1760.98,0.00029315,7]
[384929214,1757627534306,-1465.12,0.00029315,7]
[384929215,1757627534316,-943.48,0.00029315,7]
[384929216,1757627534325,-897.82,0.00029315,7]
[384929217,1757627534338,-400.0,0.00029315,7]
[384929218,1757627534347,-737.11,0.00029315,7]
[384929219,1757627534357,-674.73,0.00029315,7]
[384929220,1757627534366,-666.9,0.00029315,7]
[384929221,1757627534375,-2358.03,0.00029315,7]
[384929222,1757627534385,-443.98643664,0.00029315,7]
[384929223,1757627534394,-1950.94,0.00029315,7]
[384929224,1757627534403,-2454.36,0.00029315,7]
[384929225,1757627534413,-781.35,0.00029315,7]
[384929226,1757627534422,-1589.11,0.00029315,7]
[384929227,1757627534431,-610.63,0.00029315,7]
[384929228,1757627534440,-1911.65,0.00029315,7]
[384929229,1757627534449,-645.89,0.00029315,7]
[384929230,1757627534458,-400.0,0.00029315,7]
[384929231,1757627534468,-400.0,0.00029315,7]
[384929232,1757627534476,-400.0,0.00029315,7]
[384929233,1757627534485,-429.42,0.00029315,7]
[384929234,1757627534493,-1761.27,0.00029315,7]
[384929235,1757627534502,-2211.08,0.00029315,7]
[384929236,1757627534512,-1275.46,0.00029315,7]
[384929237,1757627534520,-452.08,0.00029315,7]
[384929238,1757627534530,-903.15,0.00029315,7]
[384929239,1757627534538,-730.4,0.00029315,7]
[384929240,1757627534547,-1244.21,0.00029315,7]
[384929241,1757627534557,-1272.64,0.00029315,7]
[384929242,1757627534567,-2147.52,0.00029315,7]
[384929243,1757627534576,-1608.5,0.00029315,7]
[384929244,1757627534585,-474.19,0.00029315,7]
[384929245,1757627534594,-400.0,0.00029315,2]
[384929246,1757627534603,-468.6,0.00029315,7]
[384929247,1757627534612,-726.05,0.00029315,7]
[384929248,1757627534621,-1333.63,0.00029315,7]
[384929249,1757627534630,-2353.72,0.00029315,7]
[384929250,1757627534639,-2117.57,0.00029315,7]
[384929251,1757627534648,-410.31,0.00029315,7]
[384929252,1757627534657,-400.0,0.00029315,7]
[384929253,1757627534667,-400.0,0.00029315,7]
[384929254,1757627534676,-400.0,0.00029315,7]
[384929255,1757627534686,-792.77,0.00029315,7]
[384929256,1757627534695,-2010.24,0.00029315,7]
[384929257,1757627534704,-564.18,0.00029315,7]
[384929258,1757627534713,-1805.19,0.00029315,7]
[384929259,1757627534722,-400.0,0.00029315,7]
[384929260,1757627534731,-1520.22,0.00029315,7]
[384929261,1757627534743,-825.64,0.00029315,7]
[384929262,1757627534752,-1290.72,0.00029315,7]
[384929263,1757627534762,-1603.55,0.00029315,7]
[384929264,1757627534774,-1459.31,0.00029315,7]
[384929265,1757627534783,-2714.64,0.00029315,7]
[384929266,1757627534792,-909.86,0.00029315,7]
[384929267,1757627534801,-1370.73,0.00029315,7]
[384929268,1757627534810,-2356.36,0.00029315,7]
[384929269,1757627534819,-820.52,0.00029315,7]
[384929270,1757627534828,-1552.2,0.00029315,7]
[384929271,1757627534837,-832.81,0.00029315,7]
[384929272,1757627534846,-980.62,0.00029315,7]
[384929273,1757627534862,-436.16,0.00029315,7]
[384929274,1757627534875,-2368.21,0.00029315,7]
[384929275,1757627534884,-2310.49,0.00029315,7]
[384929276,1757627534894,-751.05,0.00029315,7]
[384929277,1757627534905,-521.56,0.00029315,7]
[384929278,1757627534914,-690.1,0.00029315,7]
[384929279,1757627534923,-614.59,0.00029315,7]
[384929280,1757627534934,-1138.65,0.00029315,7]
[384929281,1757627534945,-1234.09,0.00029315,7]
[384929282,1757627534956,-1139.8,0.00029315,7]
[384929283,1757627534966,-1357.28,0.00029315,7]
[384929284,1757627534975,-483.0,0.00029315,7]
[384929285,1757627534984,-2221.87,0.00029315,7]
[384929286,1757627534993,-764.53,0.00029315,7]
[384929287,1757627535003,-400.0,0.00029315,7]
[384929288,1757627535012,-616.29,0.00029315,7]
[384929289,1757627535021,-893.59,0.00029315,7]
[384929290,1757627535031,-497.07,0.00029315,7]
[384929291,1757627535040,-2494.05,0.00029315,7]
[384929292,1757627535050,-1961.97,0.00029315,7]
[384929293,1757627535059,-715.83,0.00029315,7]
[384929294,1757627535068,-400.0,0.00029315,7]
[384929295,1757627535077,-2400.41,0.00029315,7]
[384929296,1757627535087,-446.0257537,0.00029315,7]
[384929297,1757627535096,-400.0,0.00029315,7]
[384929298,1757627535106,-1350.64,0.00029315,7]
[384929299,1757627535115,-400.0,0.00029315,7]
[384929300,1757627535124,-1152.15,0.00029315,7]
[384929301,1757627535134,-1942.36,0.00029315,7]
[384929302,1757627535143,-400.0,0.00029315,7]
[384929303,1757627535152,-1745.53,0.00029315,7]
[384929304,1757627535162,-400.0,0.00029315,7]
[384929305,1757627535172,-1304.87,0.00029315,7]
[384929306,1757627535183,-2239.53,0.00029315,7]
[384929307,1757627535192,-1080.41,0.00029315,7]
[384929308,1757627535203,-1587.86,0.00029315,7]
[384929309,1757627535212,-772.24,0.00029315,7]
[384929310,1757627535221,-1535.99,0.00029315,7]
[384929311,1757627535231,-400.0,0.00029315,7]
[384929312,1757627535240,-681.33,0.00029315,7]
[384929313,1757627535249,-1709.93,0.00029315,7]
[384929314,1757627535258,-827.79,0.00029315,7]
[384929315,1757627535268,-1405.7,0.00029315,7]
[384929316,1757627535277,-1894.71,0.00029315,7]
[384929317,1757627535286,-1305.44,0.00029315,7]
[384929318,1757627535295,-670.2,0.00029315,7]
[384929319,1757627535304,-2336.96,0.00029315,7]
[384929320,1757627535314,-663.76,0.00029315,7]
[384929321,1757627535324,-1721.31,0.00029315,7]
[384929322,1757627535336,-2672.17,0.00029315,7]
[384929323,1757627535347,-1652.48,0.00029315,7]
[384929324,1757627535356,-1555.35,0.00029315,7]
[384929325,1757627535365,-492.71391915,0.00029315,7]
[384929326,1757627535375,-1705.56,0.00029315,7]
[384929327,1757627535386,-377.39553663,0.00029315,7]
[384929328,1757627535395,-400.0,0.00029315,7]
[384929329,1757627535405,-900.41,0.00029315,7]
[384929330,1757627535417,-897.52,0.00029315,7]
[384929331,1757627535427,-1924.73,0.00029315,7]
[384929332,1757627535436,-400.0,0.00029315,7]
[384929333,1757627535445,-2279.93,0.00029315,7]
[384929334,1757627535455,-2115.38,0.00029315,7]
[384929335,1757627535466,-400.0,0.00029315,7]
[384929336,1757627535475,-622.31,0.00029315,7]
[384929337,1757627535484,-1153.84,0.00029315,7]
[384929338,1757627535493,-400.0,0.00029315,7]
[384929339,1757627535503,-519.0,0.00029315,7]
[384929340,1757627535512,-1849.34,0.00029315,7]
[384929341,1757627535521,-400.0,0.00029315,7]
[384929342,1757627535530,-1244.32,0.00029315,7]
[384929343,1757627535539,-418.22,0.00029315,7]
[384929344,1757627535549,-1903.92,0.00029315,7]
[384929345,1757627535558,-926.52,0.00029315,7]
[384929346,1757627535569,-2054.75,0.00029315,7]
[384929347,1757627535578,-2269.52,0.00029315,7]
[384929348,1757627535587,-891.18,0.00029315,7]
[384929349,1757627535596,-774.47,0.00029315,7]
[384929350,1757627535605,-1816.52,0.00029315,7]
[384929351,1757627535614,-400.0,0.00029315,7]
[384929352,1757627535623,-1861.78,0.00029315,7]
[384929353,1757627535632,-1516.31,0.00029315,7]
[384929354,1757627535642,-1776.85,0.00029315,7]
[384929355,1757627535651,-263.23083562,0.00029315,7]
[384929356,1757627535660,-400.0,0.00029315,7]
[384929357,1757627535670,-946.01,0.00029315,7]
[384929358,1757627535679,-1366.26,0.00029315,7]
[384929359,1757627535688,-400.0,0.00029315,7]
[384929360,1757627535697,-777.81,0.00029315,7]
[384929361,1757627535706,-2170.93,0.00029315,7]
[384929362,1757627535715,-619.87,0.00029315,7]
[384929363,1757627535724,-544.78,0.00029315,7]
[384929364,1757627535733,-400.0,0.00029315,7]
[384929365,1757627535743,-2122.23,0.00029315,7]
[384929366,1757627535752,-400.0,0.00029315,7]
[384929367,1757627535762,-1168.45,0.00029315,7]
[384929368,1757627535771,-928.76,0.00029315,7]
[384929369,1757627535780,-1186.62,0.00029315,7]
[384929370,1757627535789,-1039.0,0.00029315,7]
[384929371,1757627535798,-400.0,0.00029315,7]
[384929372,1757627535807,-1372.99,0.00029315,7]
[384929373,1757627535817,-525.55,0.00029315,7]
[384929374,1757627535826,-400.0,0.00029315,7]
[384929375,1757627535836,-1647.59,0.00029315,7]
[384929376,1757627535848,-730.82,0.00029315,7]
[384929377,1757627535862,-451.69,0.00029315,7]
[384929378,1757627535871,-1488.12,0.00029315,7]
[384929379,1757627535881,-400.0,0.00029315,7]
[384929380,1757627535890,-2407.69,0.00029315,7]
[384929381,1757627535899,-400.0,0.00029315,7]
[384929382,1757627535909,-1661.64,0.00029315,7]
[384929383,1757627535918,-1847.44,0.00029315,7]
[384929384,1757627535927,-812.44,0.00029315,7]
[384929385,1757627535937,-2974.72,0.00029315,7]
[384929386,1757627535946,-2154.39,0.00029315,7]
[384929387,1757627535955,-400.0,0.00029315,7]
[384929388,1757627535966,-2409.57,0.00029315,7]
[384929389,1757627535975,-1505.1,0.00029315,7]
[384929390,1757627535986,-826.95,0.00029315,7]
[384929391,1757627535995,-2357.19,0.00029315,7]
[384929392,1757627536005,-415.59,0.00029315,7]
[384929393,1757627536016,-191.7,0.00029315,7]
[384929394,1757627536026,-1209.2,0.00029315,7]
[384929395,1757627536035,-1222.72,0.00029315,7]
[384929396,1757627536044,-2029.82,0.00029315,7]
[384929397,1757627536054,-2376.92,0.00029315,7]
[384929398,1757627536064,-467.93,0.00029315,7]
[384929399,1757627536073,-1576.35,0.00029315,7]
[384929400,1757627536082,-400.0,0.00029315,7]
[384929401,1757627536091,-400.0,0.00029315,7]
[384929402,1757627536102,-619.65,0.00029315,7]
[384929403,1757627536112,-831.1,0.00029315,7]
[384929404,1757627536121,-2286.96,0.00029315,7]
[384929405,1757627536131,-400.0,0.00029315,7]
[384929406,1757627536140,-683.59,0.00029315,7]
[384929407,1757627536149,-663.74,0.00029315,7]
[384929408,1757627536160,-355.48161555,0.00029315,7]
[384929409,1757627536170,-517.61,0.00029315,7]
[384929410,1757627536180,-753.25,0.00029315,7]
[384929411,1757627536189,-2533.56,0.00029315,7]
[384929412,1757627536199,-400.0,0.00029315,7]
[384929413,1757627536208,-1527.86,0.00029315,7]
[384929414,1757627536217,-400.0,0.00029315,7]
[384929415,1757627536227,-1146.83,0.00029315,7]
[384929416,1757627536236,-511.10678729,0.00029315,7]
[384929417,1757627536245,-1894.11,0.00029315,7]
[384929418,1757627536255,-487.19,0.00029315,7]
[384929419,1757627536265,-621.23,0.00029315,7]
[384929420,1757627536274,-1816.71,0.00029315,7]
[384929421,1757627536283,-636.93,0.00029315,7]
[384929422,1757627536293,-597.77,0.00029315,7]
[384929423,1757627536302,-1978.38,0.00029315,7]
[384929424,1757627536312,-804.92,0.00029315,7]
[384929425,1757627536322,-1032.8,0.00029315,7]
[384929426,1757627536332,-400.0,0.00029315,7]
[384929427,1757627536346,-2188.58,0.00029315,7]
[384929428,1757627536356,-783.81,0.00029315,7]
[384929429,1757627536365,-1200.87,0.00029315,7]
[384929430,1757627536375,-1046.78,0.00029315,7]
[384929431,1757627536384,-1611.77,0.00029315,7]
[384929432,1757627536394,-434.23,0.00029315,7]
[384929433,1757627536403,-405.19924952,0.00029315,7]
[384929434,1757627536413,-2777.49,0.00029315,7]
[384929435,1757627536422,-467.51,0.00029315,7]
[384929436,1757627536431,-2380.05,0.00029315,7]
[384929437,1757627536441,-400.0,0.00029315,7]
[384929438,1757627536451,-400.0,0.00029315,7]
[384929439,1757627536460,-432.14,0.00029315,7]
[384929440,1757627536470,-936.21,0.00029315,7]
[384929441,1757627536480,-439.89177657,0.00029315,7]
[384929442,1757627536489,-612.46,0.00029315,7]
[384929443,1757627536498,-619.53,0.00029315,7]
[384929444,1757627536507,-400.0,0.00029315,7]
[384929445,1757627536517,-502.36,0.00029315,7]
[384929446,1757627536527,-726.74,0.00029315,7]
[384929447,1757627536536,-708.25,0.00029315,7]
[384929448,1757627536546,-400.0,0.00029315,7]
[384929449,1757627536555,-687.63,0.00029315,7]
[384929450,1757627536564,-2492.29,0.00029315,7]
[384929451,1757627536574,-525.18,0.00029315,7]
[384929452,1757627536583,-400.0,0.00029315,7]
[384929453,1757627536592,-1811.61,0.00029315,7]
[384929454,1757627536601,-2450.83,0.00029315,7]
[384929455,1757627536611,-3678.48,0.00029315,7]
[384929456,1757627536620,-451.31,0.00029315,7]
[384929457,1757627536629,-400.0,0.00029315,7]
[384929458,1757627536639,-1480.88,0.00029315,7]
[384929459,1757627536648,-400.0,0.00029315,7]
[384929460,1757627536658,-400.0,0.00029315,7]
[384929461,1757627536667,-824.46,0.00029315,7]
[384929462,1757627536677,-400.0,0.00029315,7]
[384929463,1757627536686,-400.0,0.00029315,7]
[384929464,1757627536696,-615.43,0.00029315,7]
[384929465,1757627536705,-1426.55,0.00029315,7]
[384929466,1757627536715,-1733.33,0.00029315,7]
[384929467,1757627536725,-400.0,0.00029315,7]
[384929468,1757627536735,-1444.75,0.00029315,7]
[384929469,1757627536744,-656.5,0.00029315,7]
[384929470,1757627536754,-663.82,0.00029315,7]
[384929471,1757627536763,-400.0,0.00029315,7]
[384929472,1757627536772,-1413.55,0.00029315,7]
[384929473,1757627536781,-1859.7,0.00029315,7]
[384929474,1757627536790,-400.0,0.00029315,7]
[384929475,1757627536800,-1657.72,0.00029315,7]
[384929476,1757627536809,-1771.5,0.00029315,7]
[384929477,1757627536819,-400.0,0.00029315,7]
[384929478,1757627536828,-400.0,0.00029315,7]
[384929479,1757627536838,-1895.65,0.00029315,7]
[384929480,1757627536848,-1281.78,0.00029315,7]
[384929481,1757627536857,-1064.31,0.00029315,7]
[384929482,1757627536866,-1607.9,0.00029315,7]
[384929483,1757627536876,-618.96,0.00029315,7]
[384929484,1757627536887,-374.19,0.00029315,7]
[384929485,1757627536896,-400.0,0.00029315,7]
[384929486,1757627536906,-555.14,0.00029315,7]
[384929487,1757627536915,-400.0,0.00029315,7]
[384929488,1757627536924,-413.96,0.00029315,7]
[384929489,1757627536934,-8723.99,0.00029315,7]
[384929490,1757627536943,-400.0,0.00029315,7]
[384929491,1757627536952,-10846.33,0.00029315,7]
[384929492,1757627536961,-413.57,0.00029315,7]
[384929493,1757627536970,-2723.99,0.00029315,7]
[384929494,1757627536980,-2416.16,0.00029315,7]
[384929495,1757627536989,-1251.69,0.00029315,7]
[384929496,1757627536999,-1588.95,0.00029315,7]
[384929497,1757627537008,-400.0,0.00029315,7]
[384929498,1757627537018,-3367.99,0.00029315,7]
[384929499,1757627537028,-571.98,0.00029315,7]
[384929500,1757627537038,-1485.57,0.00029315,7]
[384929501,1757627537047,-1511.45,0.00029315,7]
[384929502,1757627537058,-580.95,0.00029315,7]
[384929503,1757627537069,-1402.77,0.00029315,7]
[384929504,1757627537082,-2512.68,0.00029315,7]
[384929505,1757627537093,-400.0,0.00029315,7]
[384929506,1757627537103,-2129.92,0.00029315,7]
[384929507,1757627537112,-1100.85,0.00029315,7]
[384929508,1757627537121,-1468.07,0.00029315,7]
[384929509,1757627537131,-1235.68,0.00029315,7]
[384929510,1757627537140,-400.0,0.00029315,7]
[384929511,1757627537150,-400.0,0.00029315,7]
[384929512,1757627537161,-1148.27,0.00029315,7]
[384929513,1757627537172,-659.2,0.00029315,7]
[384929514,1757627537182,-677.06,0.00029315,7]
[384929515,1757627537192,-4042.54,0.00029315,7]
[384929516,1757627537201,-1478.86,0.00029315,7]
[384929517,1757627537211,-596.08,0.00029315,7]
[384929518,1757627537221,-3121.58,0.00029315,7]
[384929519,1757627537231,-1327.37,0.00029315,7]
[384929520,1757627537241,-2116.65,0.00029315,7]
[384929521,1757627537251,-412.03,0.00029315,7]
[384929522,1757627537261,-400.0,0.00029315,7]
[384929523,1757627537271,-1719.45,0.00029315,7]
[384929524,1757627537281,-1710.12,0.00029315,7]
[384929525,1757627537291,-1450.37,0.00029315,7]
[384929526,1757627537300,-1987.08,0.00029315,7]
[384929527,1757627537310,-1612.89,0.00029315,7]
[384929528,1757627537320,-513.59,0.00029315,7]
[384929529,1757627537330,-836.01,0.00029315,7]
[384929530,1757627537343,-3415.13,0.00029315,7]
[384929531,1757627537352,-400.0,0.00029315,7]
[384929532,1757627537362,-1717.5,0.00029315,7]
[384929533,1757627537372,-660.1,0.00029315,7]
[384929534,1757627537381,-2173.97,0.00029315,7]
[384929535,1757627537390,-3404.31,0.00029315,7]
[384929536,1757627537399,-2122.67,0.00029315,7]
[384929537,1757627537410,-400.0,0.00029315,7]
[384929538,1757627537420,-1824.59,0.00029315,7]
[384929539,1757627537431,-2940.84,0.00029315,7]
[384929540,1757627537440,-400.0,0.00029315,7]
[384929541,1757627537449,-2046.07,0.00029315,7]
[384929542,1757627537458,-400.0,0.00029315,7]
[384929543,1757627537467,-1664.51,0.00029315,7]
[384929544,1757627537476,-403.61351748,0.00029315,7]
[384929545,1757627537486,-400.0,0.00029315,7]
[384929546,1757627537496,-2668.52,0.00029315,7]
[384929547,1757627537505,-1145.88,0.00029315,7]
[384929548,1757627537515,-400.0,0.00029315,7]
[384929549,1757627537525,-400.0,0.00029315,7]
[384929550,1757627537535,-1418.74,0.00029315,7]
[384929551,1757627537545,-1033.62,0.00029315,7]
[384929552,1757627537555,-400.0,0.00029315,7]
[384929553,1757627537564,-857.22,0.00029315,7]
[384929554,1757627537574,-400.0,0.00029315,7]
[384929555,1757627537584,-400.0,0.00029315,7]
[384929556,1757627537594,-400.0,0.00029315,7]
[384929557,1757627537604,-1768.54,0.00029315,7]
[384929558,1757627537613,-1785.27,0.00029315,7]
[384929559,1757627537623,-1525.18,0.00029315,7]
[384929560,1757627537633,-3561.21,0.00029315,7]
[384929561,1757627537643,-412.28,0.00029315,7]
[384929562,1757627537653,-1709.68,0.00029315,7]
[384929563,1757627537663,-534.14514287,0.00029315,7]
[384929564,1757627537673,-400.0,0.00029315,7]
[384929565,1757627537683,-440.38,0.00029315,7]